Cogmind - Beta 10.2 @@@ ROGUE MODE // 2021.11.18 @ 02:18:20 Player: Pitch Lover Result: Destroyed by Y-54 Guardian with Flak Gun Performance ------------- Evolutions (3) 1500 Regions Visited (4) 800 Robots Destroyed (27) 135 Value Destroyed (952) 952 Prototype IDs (0) 0 Alien Tech Used (0) 0 Bonus (0) 0 TOTAL SCORE: 3387 Bonus ------- None Cogmind --------- Core Integrity 0/700 Matter 49/300 Energy 100/100 System Corruption 0% Temperature Cool (12) Movement Core (600) Ox11 Location -7/Factory Parts ------- > --- POWER (1) -------- (None) > --- PROPULSION (4) --- (None) > --- UTILITY (5) ------ High-capacity Storage Unit Terrain Scan Processor > --- WEAPON (3) ------- Scythe > --- INVENTORY (12) --- Micro Nuclear Core High-capacity Storage Unit Improved Targeting Computer Transmission Jammer Medium Armor Plating System Shield Improved Datajack Improved Datajack Peak State ------------ > --- POWER ------------ Micro Nuclear Core > --- PROPULSION ------- Aluminum Leg Aluminum Leg Aluminum Leg > --- UTILITY ---------- High-capacity Storage Unit Weight Redist. System Advanced Sensor Array Terrain Scan Processor System Shield > --- WEAPON ----------- Heavy Assault Rifle Heavy Assault Rifle > --- INVENTORY -------- Micro Nuclear Core High-capacity Storage Unit Improved Targeting Computer Transmission Jammer Medium Armor Plating System Shield Rocket Launcher Improved Datajack Improved Datajack Scythe [Rating: 24] Favorites ----------- Power Ion Engine Engine Ion Engine Power Core Micro Nuclear Core Propulsion Aluminum Leg Leg Aluminum Leg Wheel Compact Wheel Utility Large Storage Unit Device Weight Redist. System Storage Large Storage Unit Processor Terrain Scan Processor Hackware System Shield Weapon Light Assault Rifle Energy Gun Medium Laser Ballistic Gun Light Assault Rifle Launcher Grenade Launcher Slashing Weapon Scythe Build | -11 -10 -9 -8 -7 ------- Run | Scr Mat Mat Mat Fac Slots Evolved 6 | . . 2 2 2 Power . | . . . . . Propulsion 2 | . . 2 . . Utility 3 | . . . 2 1 Weapon 1 | . . . . 1 Parts Attached 41 | 6 2 7 23 3 Power 3 | 1 . . 2 . Engine 2 | 1 . . 1 . Core 1 | . . . 1 . Reactor . | . . . . . Propulsion 10 | 2 . 3 5 . Treads . | . . . . . Leg 6 | . . 2 4 . Wheel 4 | 2 . 1 1 . Hover . | . . . . . Flight . | . . . . . Utility 11 | 1 2 . 7 1 Device 3 | . . . 2 1 Storage 6 | 1 2 . 3 . Processor 1 | . . . 1 . Hackware 1 | . . . 1 . Protection . | . . . . . Artifact . | . . . . . Weapon 17 | 2 . 4 9 2 Energy Gun 1 | . . . 1 . Energy Cannon . | . . . . . Ballistic Gun 9 | 2 . 2 5 . Ballistic Cannon . | . . . . . Launcher 5 | . . 2 2 1 Special Weapon . | . . . . . Impact Weapon . | . . . . . Slashing Weapon 2 | . . . 1 1 Piercing Weapon . | . . . . . Special Melee Weapon . | . . . . . Unidentified Prototypes . | . . . . . Parts Lost 16 | . . 1 5 10 Power 1 | . . . . 1 Propulsion 6 | . . . 3 3 Utility 3 | . . . . 3 Weapon 6 | . . 1 2 3 Highest Loss Streak 10 | . . 1 3 10 Average Slot Usage (%) 93 | . 92 100 96 67 Engine 9 | . 14 11 8 . Leg 19 | . . 22 29 15 Wheel 13 | . 28 22 3 . Device 3 | . . . 5 11 Storage 16 | . 20 22 13 7 Processor 4 | . . . 9 7 Hackware 4 | . . . 8 5 Energy Gun 1 | . . . 2 . Ballistic Gun 18 | . 28 21 14 11 Naked Turns . | . . . . . Heaviest Build 77 | 11 39 43 77 45 Greatest Support 54 | 32 32 32 54 36 Greatest Overweight (x) 11 | 2 1 1 2 11 Average Overweight (x) . | . . 1 . 1 Largest Inventory Capacity 22 | 6 16 16 22 12 Average Capacity 13 | 5 10 16 14 12 Most Carried 16 | 6 9 16 15 11 Average Carried 10 | 3 7 13 10 9 Final Capacity 16 | 6 16 16 12 12 Final Carried 16 | 5 9 16 11 8 Class Distribution -------------------- 90% | Mutant 9% | Hauler-Mutant Dominant Class ---------------- Mutant | -10/Materials Mutant | -9/Materials Mutant | -8/Materials Mutant | -7/Factory Resources | -11 -10 -9 -8 -7 ----------- Run | Scr Mat Mat Mat Fac Matter Collected 679 | 213 17 2 447 . Remotely . | . . . . . Salvage Created 972 | . 105 218 616 33 Parts 55 | . 8 13 33 1 Haulers Intercepted . | . . . . . Recyclers Shooed 1 | . . . 1 . Parts Field Recycled . | . . . . . Retrieved Matter . | . . . . . Parts Self-Destructed . | . . . . . Prevented . | . . . . . Kills | -11 -10 -9 -8 -7 ------- Run | Scr Mat Mat Mat Fac Combat Hostiles Destroyed 21 | . 2 5 13 1 Guns 14 | . 2 2 10 . AOE 7 | . . 3 3 1 Classes Destroyed 8 | . 2 3 3 . Worker 1 | . . . 1 . Builder 2 | . 1 . 1 . Recycler 1 | . . 1 . . Watcher 2 | . . . 2 . Swarmer 3 | . . 3 . . Grunt 12 | . 2 . 9 1 Duelist 2 | . . . 2 . Sentry 4 | . . 2 2 . Best Kill Streak 4 | . 2 3 4 1 Combat Bots Only 3 | . 2 3 3 1 Max Kills in Single Turn 3 | . 1 3 2 1 Gunslinging . | . . . . . Exploded 3 | . . 3 1 1 Melee . | . . . . . Uniques/NPCs Destroyed . | . . . . . Combat | -11 -10 -9 -8 -7 -------- Run | Scr Mat Mat Mat Fac Damage Taken 2577 | . 176 196 920 1285 Core 970 | . 105 25 140 700 Absorbed by Shields . | . . . . . Core Remaining (%) 81 | 100 58 93 74 . Volleys Fired 110 | . 14 21 73 2 Largest 2 | . 2 2 2 1 Hottest 73 | . 40 43 73 33 Shots Fired 182 | . 28 39 113 2 Gun 170 | . 28 36 106 . Cannon . | . . . . . Launcher 12 | . . 3 7 2 Special . | . . . . . Kinetic 143 | . 28 36 79 . Thermal 27 | . . . 27 . Explosive 12 | . . 3 7 2 Electromagnetic . | . . . . . Robot Hit Streak 18 | . 7 4 18 6 Robot Miss Streak 4 | . 4 4 3 . Penetration Max . | . . . . . Secondary Targets 1 | . 1 . . . Max Gunslinging Chain 1 | . 1 . . . Shots Hit Robots 109 | . 19 14 70 6 Core Hits 67 | . 8 11 41 7 Critical Hits 2 | . 1 . 1 . Critical Kills 1 | . . . 1 . Critical Parts Destroyed 1 | . 1 . . . Melee Attacks 6 | . . . 2 4 Impact . | . . . . . Slashing 6 | . . . 2 4 Piercing . | . . . . . Sneak Attacks . | . . . . . Combat Hostiles . | . . . . . Follow-up Attacks . | . . . . . Damage Inflicted 2425 | . 155 212 1491 567 Guns 1247 | . 155 128 964 . Cannons . | . . . . . Explosions 1016 | . . 84 527 405 Melee 122 | . . . . 122 Ramming 40 | . . . . 40 Kinetic 1023 | . 155 128 740 . Thermal 224 | . . . 224 . Explosive 1016 | . . 84 527 405 Electromagnetic . | . . . . . Impact . | . . . . . Slashing 122 | . . . . 122 Piercing . | . . . . . Highest Corruption . | . . . . . Average Corruption . | . . . . . Corruption Purged . | . . . . . Overload Shots . | . . . . . Overflow Damage 39 | . . . 35 4 Projectiles . | . . . . . Explosions 39 | . . . 35 4 Melee . | . . . . . Knockbacks . | . . . . . Impact . | . . . . . Kinetic . | . . . . . Secondary . | . . . . . Self-Inflicted Damage 119 | . . 15 . 104 Shots 3 | . . 1 . 2 Rammed 9 | . . . . 9 Targets Rammed 13 | . . . . 13 Kicked 4 | . . . . 4 Crushed . | . . . . . Highest Temperature 80 | . 19 6 80 18 Average Temperature 19 | . 12 4 23 12 Received Heat Transfer 1158 | . 102 18 495 543 Siege Activations . | . . . . . Robots Corrupted . | . . . . . Combat Hostiles . | . . . . . Parts Fried . | . . . . . Impact Corruptions . | . . . . . Robots Melted . | . . . . . Combat Hostiles . | . . . . . Parts Melted 2 | . . . 2 . Heat Transferred 666 | . . . 666 . Parts Sabotaged . | . . . . . Parts Stolen . | . . . . . Parts Stripped . | . . . . . Power Chain Reactions . | . . . . . Missiles Intercepted . | . . . . . Alert | -11 -10 -9 -8 -7 ------- Run | Scr Mat Mat Mat Fac Peak Influence 351 | . 70 189 351 131 Initial 126 | . . 31 79 126 Average 122 | . 21 96 209 114 Maximum Alert Level 1 | . . . 1 . Low Security (%) 82 | 100 100 100 55 100 Level 1 17 | . . . 44 . Level 2 . | . . . . . Level 3 . | . . . . . Level 4 . | . . . . . Level 5 . | . . . . . High Security . | . . . . . Max Security . | . . . . . Squads Dispatched . | . . . . . Investigation . | . . . . . Extermination . | . . . . . Reinforcement . | . . . . . Assault . | . . . . . Garrison . | . . . . . Intercept . | . . . . . Construction Impeded . | . . . . . Haulers Reinforced . | . . . . . Stealth | -11 -10 -9 -8 -7 --------- Run | Scr Mat Mat Mat Fac Distress Signals 2 | . . . 2 . Communications Jammed . | . . . . . Distress Signals . | . . . . . Times Spotted 37 | . 4 8 20 5 Peak Tracking Total 5 | . 2 3 4 5 Tactical Retreats . | . . . . . Traps | -11 -10 -9 -8 -7 ------- Run | Scr Mat Mat Mat Fac Traps Triggered . | . . . . . Indirectly . | . . . . . Trap Hack Attempts . | . . . . . Triggered . | . . . . . Disarmed . | . . . . . Reprogrammed . | . . . . . Reused . | . . . . . Traps Extracted . | . . . . . Installed . | . . . . . Triggered . | . . . . . Machines | -11 -10 -9 -8 -7 ---------- Run | Scr Mat Mat Mat Fac Machines Disabled 3 | . . . 3 . Max in Single Turn 1 | . . . 1 . Machines Sabotaged . | . . . . . Garrisons Compromised . | . . . . . Overloaded Fab Kills . | . . . . . Fab Network Shutdowns . | . . . . . Hacking | -11 -10 -9 -8 -7 --------- Run | Scr Mat Mat Mat Fac Machines Accessed 8 | . 3 1 3 1 Terminals 8 | . 3 1 3 1 Fabricators . | . . . . . Repair Stations . | . . . . . Recycling Units . | . . . . . Scanalyzers . | . . . . . Garrison Access . | . . . . . Total Hacks 26 | . 4 3 16 3 Successful 12 | . 1 2 7 2 Failed 14 | . 3 1 9 1 Catastrophic 4 | . 2 . 1 1 Database Lockouts . | . . . . . Manual 25 | . 4 3 15 3 Terminals 26 | . 4 3 16 3 Fabricators . | . . . . . Repair Stations . | . . . . . Recycling Units . | . . . . . Scanalyzers . | . . . . . Garrison Access . | . . . . . Terminal Hacks 1 | . . . 1 . Record 1 | . . . 1 . Fabricator Hacks . | . . . . . Repair Station Hacks . | . . . . . Recycling Unit Hacks . | . . . . . Scanalyzer . | . . . . . Garrison Access Hacks . | . . . . . Unauthorized Hacks 11 | . 1 2 6 2 Terminals 11 | . 1 2 6 2 Track 5 | . . 1 3 1 Botnet 6 | . 1 1 3 1 Fabricators . | . . . . . Repair Stations . | . . . . . Recycling Units . | . . . . . Scanalyzers . | . . . . . Garrison Access . | . . . . . Data Cores Recovered . | . . . . . Used . | . . . . . Hacking Detections 4 | . 2 . 2 . Full Trace Events . | . . . . . Feedback Events . | . . . . . Feedback Blocked . | . . . . . Robot Schematics Acquired . | . . . . . Robots Built . | . . . . . Matter . | . . . . . Time . | . . . . . Total Robot Build Rating . | . . . . . Part Schematics Acquired . | . . . . . Parts Built . | . . . . . Matter . | . . . . . Time . | . . . . . Total Part Build Rating . | . . . . . Parts Repaired . | . . . . . Time . | . . . . . Parts Recycled . | . . . . . Recycled Matter . | . . . . . Retrieved Matter . | . . . . . Retrieved Components . | . . . . . Parts Scanalyzed . | . . . . . Part Schematics Acquired . | . . . . . Parts Damaged . | . . . . . Bothacking | -11 -10 -9 -8 -7 ------------ Run | Scr Mat Mat Mat Fac Used RIF Installer . | . . . . . Robots Hacked . | . . . . . Non-combat . | . . . . . Combat . | . . . . . Robot Hacks Applied . | . . . . . Relay Couplers Released . | . . . . . Robots Rewired . | . . . . . Allies Hacked . | . . . . . Hacks Repelled . | . . . . . Allies | -11 -10 -9 -8 -7 -------- Run | Scr Mat Mat Mat Fac Total Allies . | . . . . . Largest Group . | . . . . . Highest-Rated Group . | . . . . . Highest-Rated Ally . | . . . . . Total Orders . | . . . . . Ally Attacks . | . . . . . Total Damage . | . . . . . Kills . | . . . . . Allies Corrupted . | . . . . . Allies Melted . | . . . . . Intel | -11 -10 -9 -8 -7 ------- Run | Scr Mat Mat Mat Fac Robot Analysis Total . | . . . . . Derelict Logs Recovered . | . . . . . Drone Launches . | . . . . . Drone Recoveries . | . . . . . Exploration | -11 -10 -9 -8 -7 ------------- Run | Scr Mat Mat Mat Fac Turns Passed 1402 | 65 308 349 560 120 Spaces Moved 848 | 53 255 246 244 50 Core 8 | 7 . . . 1 Treads . | . . . . . Legs 266 | . . . 217 49 Wheels 574 | 46 255 246 27 . Hover . | . . . . . Flight . | . . . . . Fastest Speed 50 | 50 100 110 100 150 Average Speed 117 | 97 103 110 134 159 Slowest Speed 600 | 150 110 110 180 600 Overloaded Moves . | . . . . . Propulsion Burnouts . | . . . . . Robots Hopped . | . . . . . Cave-ins Triggered . | . . . . . Exploration Rate (%) 20 | 4 46 22 27 3 Regions Visited 4 Branch Regions . Pre-discovered Areas . | . . . . . Known Exits Taken . | . . . . . Unknown Exits Taken 4 | 1 1 1 1 . Scrap Searched . | . . . . . Spaces Dug 11 | . . 9 2 . Terrain Destroyed 61 | . . 22 24 15 Melee 2 | . . . 2 . Projectile . | . . . . . AOE 59 | . . 22 22 15 Terrain Rammed . | . . . . . Walls Destroyed . | . . . . . Machines Disabled . | . . . . . Actions | -11 -10 -9 -8 -7 --------- Run | Scr Mat Mat Mat Fac Total 1058 | 64 274 290 356 74 Wait 1 | . 1 . . . Move 844 | 52 254 245 243 50 Hop . | . . . . . Pick Up 27 | 6 3 13 4 1 Fast Attach 9 | 5 1 . 3 . Attach 11 | 1 . 3 4 3 Detach 1 | . . . 1 . Swap 21 | . 1 4 16 . Drop 15 | . . 4 10 1 Fire 110 | . 14 21 73 2 Melee 6 | . . . 2 4 Ram 3 | . . . . 3 Kick 10 | . . . . 10 Crush . | . . . . . Escape Stasis . | . . . . . Rewire . | . . . . . Trap . | . . . . . Miscellaneous . | . . . . . Route ------- -11/Scrapyard -10/Materials -9/Materials -8/Materials -7/Factory History --------- Turn | Location | Event 13 | -11/Scrapyard | Discovered new exit (range 16) 66 | -11/Scrapyard | Entered Materials 313 | -10/Materials | Build established: Mutant 355 | -10/Materials | Discovered new exit (range 16) 374 | -10/Materials | Entered another Materials area 374 | -9/Materials | Evolved 2 slots: Propulsion x2 661 | -9/Materials | Discovered new exit (range 5) 723 | -9/Materials | Entered another Materials area 723 | -8/Materials | Evolved 2 slots: Utility x2 831 | -8/Materials | Lost 3 parts (2n1w) 1271 | -8/Materials | Discovered new exit (range 9) 1283 | -8/Materials | Entered Factory 1283 | -7/Factory | Evolved 2 slots: Utility x1, Weapon x1 1387 | -7/Factory | Core integrity fell below 50% 1399 | -7/Factory | Core integrity fell below 20% 1403 | -7/Factory | Destroyed by Y-54 Guardian with Flak Gun Last Messages --------------- 01371_ Slammed into G-47 Trooper. 01371_ Destabilizing: Core damaged (-14). 01372_ Hvy. Assault Rifle destroyed. 01374_ Slammed into G-47 Trooper. 01376_ Aluminum Leg destroyed. 01376_ Slammed into G-47 Trooper. 01376_ System Shield destroyed. 01378_ K-01 Serf cleans the Recycling Unit. 01378_ Slammed into G-47 Trooper. 01381_ Mic. Nuclear Core destroyed. 01383_ K-01 Serf cleans the Recycling Unit. 01384_ Destroyed Particle Gun. 01386_ Adv. Sensor Array destroyed. 01386_ G-47 Trooper destroyed. 01388_ Weight Redist. System destroyed. 01388_ Rocket Launcher destroyed. 01399_ The unstable cave ceiling collapses. 01401_ U-05 Engineer lays Concrete. 01401_ U-05 Engineer builds a Wall. 01403_ U-05 Engineer lays Concrete. Map ----- +----------------------------------------------------+ | """ #????????????????????????????????????????? | | """ #????????????????????????????????????????? | | """ #????????????????????????????????????????? | | ] #????????????????????????????????????????? | | """ #????????????????????????????????????????? | | """ ]#????????????????????????????????????????? | | """ #??????????""????????????????????????????? | | #????????? """???????????????????????????? | | ####+############ ???????????????????????????? | | # ""????????????????????????????? | | # ""?? ??? ????????????????????? | | # """" """ ???????????????????? | | # ???????????????????? | | # ???????????????????? | | ######## #######+###?# ???????????????????? | | ##?#???# #??# ?????# #???????????????????? | | ??# #??# ?????# #???????????????????? | | "" ""??# #??# ????# #???????????????????? | | "" """?# #??# ???# #????##?????????????? | | "" """?# #??# ??# #??? ??????????????? | | # #??# ?# #??"""??????????????? | | # #??? # #? """ ? #??????????? | | + #????? # u# """ ! #??????????? | | # #???????? g #??????????? | | ######## ##?????????# #??????????? | | ??????# #?????????# @ #??????????? | | ?t?# # ########### %= ""T"" ???????????? | | ???# T u ggY """"??????????????? | | ????# # ###+####### # #####??????????????? | | ????### #? ???# #???????????????? | | ??????#######? ???# """"" #???????????????? | | ????????????? """ ??# ""T"" #???????????????? | | ????????????? """ ??# "" #???????????????? | | ????????????# """ ?# "" #???????????????? | | ????????????# # [ """ #???????????????? | | ????????????######### """ #???????????????? | | ????????????????????# """ #???????????????? | | ????????????????????# ! ??????????????????? | | ????????????????????# =* = ??????????????????? | | ?????????????????????? =* ??????????????????? | | ???????????????????????? * ??????????????????? | | ?????????????????????????????##??????????????????? | | ?????????????????????????????????????????????????? | | ?????????????????????????????????????????????????? | | ?????????????????????????????????????????????????? | | ?????????????????????????????????????????????????? | | ?????????????????????????????????????????????????? | | ?????????????????????????????????????????????????? | | ?????????????????????????????????????????????????? | | ?????????????????????????????????????????????????? | +----------------------------------------------------+ Best States ------------- Heat Dissipation 34 Energy Generation 15 Energy Capacity 265 Matter Stores 268 Matter Capacity 300 Sight Range 16 Robot Scan Range 16 Terrain Scan Density 85 Additional Mass Support 6 Evasion (%) 40 Defensive Hacking 10 Item Schematics ----------------- None Robot Schematics ------------------ None Fabricated ------------ Nothing Alien Tech Used ----------------- None Achievements -------------- None Challenges ------------ None Game ------ Seed CompactHardcellRifle Manual? 0 Play Time 00:34:04 Cumulative 1.5 hours Start 2021.11.18 @ 01:45:43 End 2021.11.18 @ 02:18:20 Sessions 1 Manual Loads 0 Difficulty Rogue Special Mode None Game No. 4 Rogue 2 Adventurer 0 Explorer 2 Win Type - Total 0 Types 0/0/0/0/0/0/0/0/0 Lore% 0 Gallery% 4 Achievement% 17 Wizard Run 0 Options --------- ASCII 0 Keyboard 1 Movement Vi Keybinds 0 Fullscreen 1 Font 18/SmallcapsGlow Map View 76x50 Tactical HUD 1 Map Filters NONE Filters NONE Steam 1 RUN: 6e200a6e-8ef5-4f9d-8e59-6be12ce8578d